[Event "32nd NATO Championship 2022"]
[Site "Tartu"]
[Date "2022.06.30"]
[Round "5.40"]
[White "Coulon, Dominic"]
[Black "Allmann, Lauri"]
[Result "0-1"]
[ECO "A45"]
[WhiteElo "1701"]
[BlackElo "1804"]
[Annotator "NA RC"]
[PlyCount "60"]
[EventDate "2022.06.27"]
[EventType "swiss"]
[EventCountry "EST"]
[SourceTitle "playchess.com"]
[Source "ChessBase"]
[SourceQuality "1"]
[TimeControl "5400+30"]

1. d4 {[%emt 0:00:06]} Nf6 {[%emt 0:00:07]} 2. Bg5 {[%emt 0:00:28]} d6 {[%emt 0:01:31]} 3. Bxf6 {[%emt 0:00:43]} exf6 {[%emt 0:00:17]} 4. e3 {[%emt 0:01:21]} Nc6 {[%emt 0:01:30]} 5. Nd2 {[%emt 0:03:27]} g6 {[%emt 0:01:34]} 6. c3 {[%emt 0:00:37]} Bf5 {[%emt 0:01:34]} 7. Ne2 {[%emt 0:02:49]} Bg7 {[%emt 0:01:48]} 8. Ng3 {[%emt 0:02:37]} Ne7 {[%emt 1:26:09]} 9. Nxf5 {[%emt 1:22:52]} Nxf5 {[%emt 0:00:00]} 10. g3 {[%emt 0:00:00]} O-O {[%emt 0:00:00]} (10... c6 {might be stronger.}) 11. Bg2 {[%emt 0:00:00]} Rb8 {[%emt 0:00:00]} 12. O-O {[%emt 0:00:00]} Re8 {[%emt 0:00:00]} 13. c4 {[%emt 0:00:00]} c6 {[%emt 0:00:00]} 14. b4 {[%emt 0:00:00]} h5 {[%emt 0:00:00]} 15. Rb1 {[%emt 0:00:00]} Bh6 {[%emt 0:00:00]} 16. Re1 {[%emt 0:00:00]} Qc7 {[%emt 0:00:00]} 17. Nf1 {[%emt 0:00:00]} Ng7 $14 {[%emt 0:00:00]} 18. d5 {[%emt 0:00:00]} c5 {[%emt 0:00:00]} 19. bxc5 {[%emt 0:00:00]} Qxc5 {[%emt 0:00:00]} 20. Qd4 {[%emt 0:00:00]} Rec8 {[%emt 0:00:00]} 21. Qxf6 {[%emt 0:06:00]} Ne8 {[%emt 0:06:30]} 22. Qd4 {[%emt 0:00:30]} Qxd4 {[%emt 0:00:00]} 23. exd4 {[%emt 0:00:30]} Rxc4 {[%emt 0:00:00]} 24. Re7 {[%emt 0:00:00]} Rc7 {[%emt 0:00:00]} 25. Rbe1 {[%emt 0:00:00]} Kf8 {[%emt 0:00:00]} 26. R7e2 {[%emt 0:00:00]} Nf6 {[%emt 0:02:30]} 27. Ne3 {[%emt 0:00:00]} Re8 {[%emt 0:00:00]} 28. f4 {[%emt 0:02:30]} Bg7 {[%emt 0:00:00]} 29. Rd1 {[%emt 0:00:30]} Rc3 {[%emt 0:00:00]} 30. Kf2 {[%emt 0:00:00]} Rcxe3 {[%emt 0:02:00]} 0-1

[Event "32nd NATO Championship 2022"]
[Site "Tartu"]
[Date "2022.06.30"]
[Round "5.45"]
[White "Csizmadia, Csaba"]
[Black "Korge, Kersti"]
[Result "1-0"]
[ECO "D94"]
[WhiteElo "1875"]
[BlackElo "1864"]
[Annotator "NA RC"]
[PlyCount "185"]
[EventDate "2022.06.27"]
[EventType "swiss"]
[EventCountry "EST"]
[SourceTitle "playchess.com"]
[Source "ChessBase"]
[SourceQuality "1"]
[TimeControl "5400+30"]

1. d4 {[%emt 0:00:05]} Nf6 {[%emt 0:00:06]} 2. Nf3 {[%emt 0:00:06]} g6 {[%emt 0:00:06]} 3. c4 {[%emt 0:00:11]} c5 {[%emt 0:00:18]} 4. e3 {[%emt 0:00:05]} Bg7 {[%emt 0:01:50]} 5. Nc3 {[%emt 0:00:22]} cxd4 {[%emt 0:01:12]} 6. exd4 {[%emt 0:00:02]} O-O {[%emt 0:00:45]} 7. Be2 {[%emt 0:00:46]} d5 {[%emt 0:02:27]} 8. O-O {[%emt 0:00:56]} Nc6 {[%emt 0:00:48]} 9. h3 {[%emt 0:00:17]} Bf5 {[%emt 0:04:52]} 10. a3 {[%emt 0:01:27]} dxc4 {[%emt 0:01:02]} 11. Bxc4 {[%emt 0:00:10]} Ne4 {[%emt 0:04:50]} 12. Be3 {[%emt 0:00:23]} Nxc3 {[%emt 0:00:27]} 13. bxc3 {[%emt 0:00:05]} Qa5 {[%emt 0:04:10]} 14. Qb3 {[%emt 0:02:04]} Qc7 {[%emt 0:01:17]} 15. Be2 {[%emt 0:03:42]} Rac8 {[%emt 0:09:20]} 16. Rac1 {[%emt 0:00:54]} Na5 {[%emt 0:02:04]} 17. Qb4 {[%emt 0:00:53]} Rfd8 {[%emt 0:07:35]} 18. Rfd1 {[%emt 0:00:54]} Bf8 {[%emt 0:01:18]} 19. c4 $1 {[%emt 0:14:11]} Nc6 {[%emt 0:02:31]} (19... e5 $11 {keeps the balance.} 20. Qb2 exd4 21. Nxd4 Bg7) 20. Qd2 {[%emt 0:01:17]} (20. Qb5 $5 {[%cal Rd4d5]}) 20... e6 {[%emt 0:01:59] [#]} 21. Qc3 $2 {[%emt 0:00:33]} ({White must play} 21. g4 $1 $18 {[%cal Rg4f5]}) 21... Qa5 {[%emt 0:00:41] [#]} 22. Qxa5 {[%emt 0:00:19]} ({Only move:} 22. g4 $1 $16 Be4 23. Ng5 Qxc3 24. Rxc3) 22... Nxa5 {[%emt 0:00:01]} 23. g4 {[%emt 0:01:28]} Be4 {[%emt 0:00:09]} 24. Ng5 {[%emt 0:00:26]} Bc6 {[%emt 0:00:38]} 25. f3 {[%emt 0:15:07]} Ba4 {[%emt 0:03:28]} 26. Rf1 {[%emt 0:00:35]} Nb3 {[%emt 0:00:53]} 27. Rcd1 {[%emt 0:01:43]} Na5 {[%emt 0:03:29]} ({Much less strong is} 27... Bxa3 {[#]} 28. Ra1 $1 Nxa1 29. Rxa1 $14) (27... b5 $17 28. d5 e5) 28. Rc1 {[%emt 0:00:26]} Bxa3 $2 {[%emt 0:00:21]} (28... Bg7 $19 29. d5 exd5 30. cxd5 Bc2) 29. Ra1 {[%emt 0:00:28]} Nxc4 {[%emt 0:01:37]} 30. Bxc4 {[%emt 0:01:05]} Rxc4 {[%emt 0:00:05]} 31. Rxa3 {[%emt 0:00:14]} b5 {[%emt 0:00:33]} (31... a6 $142 32. Ne4 Bc6) 32. Ne4 {[%emt 0:00:15]} f5 {[%emt 0:05:17]} 33. Nc5 {[%emt 0:00:15]} Kf7 {[%emt 0:00:43]} 34. Nxa4 {[%emt 0:00:15]} bxa4 {[%emt 0:00:02]} 35. Rfa1 {[%emt 0:56:01]} f4 {[%emt 0:41:06]} 36. Bf2 {[%emt 0:00:00]} Rb8 {[%emt 0:00:00]} 37. Rxa4 {[%emt 0:00:00]} Rxa4 {[%emt 0:00:00]} 38. Rxa4 {[%emt 0:00:00]} Rb7 {[%emt 0:00:00]} 39. d5 {[%emt 0:00:00]} exd5 {[%emt 0:00:00]} 40. Rxf4+ {[%emt 0:00:00]} (40. Rxa7 $142 Rxa7 41. Bxa7) 40... Ke6 {[%emt 0:00:00]} 41. Ra4 {[%emt 0:00:00]} Ke5 {[%emt 0:00:00]} 42. Bxa7 {[%emt 0:00:00]} Rb3 {[%emt 0:00:00]} 43. Kg2 {[%emt 0:00:00]} Rd3 {[%emt 0:00:00]} 44. Bb8+ {[%emt 0:00:00]} Kf6 {[%emt 0:00:00]} 45. Ra6+ {[%emt 0:00:00]} Kg5 {[%emt 0:00:00]} 46. Kg3 {[%emt 0:00:00]} Kh6 {[%emt 0:00:00]} 47. Bf4+ {[%emt 0:00:00]} (47. Be5 $142 Re3 48. Bf4+ Kg7 49. Bxe3 Kf7 50. f4 Ke7 51. f5 gxf5 52. gxf5) 47... Kg7 {[%emt 0:00:00]} 48. g5 {[%emt 0:00:00]} Rd1 {[%emt 0:00:00]} 49. Ra7+ {[%emt 0:00:00]} Kg8 {[%emt 0:00:00]} 50. Be5 {[%emt 0:00:00]} d4 {[%emt 0:00:00]} 51. Rd7 {[%emt 0:00:00]} d3 {[%emt 0:00:00]} 52. Bc3 {[%emt 0:00:00]} Rg1+ {[%emt 0:00:00]} 53. Kf4 {[%emt 0:00:00]} Rh1 {[%emt 0:00:00]} 54. Rxd3 {[%emt 0:00:00]} (54. Ke5 $142 Rb1 55. Kf6 Rb8 56. Rxd3 Rf8+ 57. Ke7 Rf7+ 58. Ke6 Rf8 59. Rd7) 54... Rxh3 {[%emt 0:00:00]} 55. Bf6 {[%emt 0:00:00]} Kf7 {[%emt 0:00:00]} 56. Rd7+ {[%emt 0:00:00]} Ke6 {[%emt 0:00:00]} 57. Re7+ {[%emt 0:00:00]} Kd6 {[%emt 0:00:00]} 58. Ra7 {[%emt 0:00:00]} Ke6 {[%emt 0:00:00]} 59. Kg4 {[%emt 0:00:00]} Rh1 {[%emt 0:00:00]} 60. Ra6+ {[%emt 0:00:00]} Kf7 {[%emt 0:00:00]} 61. Kg3 {[%emt 0:00:00]} Rh5 {[%emt 0:00:00]} 62. Ra7+ {[%emt 0:00:00]} Ke6 {[%emt 0:00:00]} 63. Re7+ {[%emt 0:00:00]} Kd5 {[%emt 0:00:00]} 64. Re4 {[%emt 0:00:00]} Rh1 {[%emt 0:00:00]} 65. Rh4 {[%emt 0:00:00]} Rb1 {[%emt 0:00:00]} 66. Rxh7 {[%emt 0:00:00]} Ke6 {[%emt 0:00:00]} 67. Re7+ {[%emt 0:00:00]} Kd5 {[%emt 0:00:00]} 68. Kf4 {[%emt 0:00:00]} Rb4+ {[%emt 0:00:00]} 69. Re4 {[%emt 0:00:00]} Rb3 {[%emt 0:00:00]} 70. Ra4 {[%emt 0:00:00]} Rb1 {[%emt 0:00:00]} 71. Ra6 {[%emt 0:00:00]} Rb4+ {[%emt 0:00:00]} 72. Kg3 {[%emt 0:00:00]} Rb3 {[%emt 0:00:00]} 73. Kg4 {[%emt 0:00:00]} Rb4+ {[%emt 0:00:00]} 74. f4 {[%emt 0:00:00]} Rb1 {[%emt 0:00:00]} 75. Bg7 {[%emt 0:00:00]} Rg1+ {[%emt 0:00:00]} 76. Kf3 {[%emt 0:20:30]} Rf1+ {[%emt 0:20:30]} 77. Ke3 {[%emt 0:00:00]} Re1+ {[%emt 0:00:00]} 78. Kf2 {[%emt 0:00:00]} Re7 {[%emt 0:00:00]} 79. Rxg6 {[%emt 0:00:00]} Ke4 {[%emt 0:00:00]} 80. Be5 {[%emt 0:00:00]} Kf5 {[%emt 0:00:00]} 81. Rf6+ {[%emt 0:00:00]} Kg4 {[%emt 0:00:00]} 82. Rf8 {[%emt 0:00:00]} Kh5 {[%emt 0:00:00]} 83. Kg3 {[%emt 0:00:00]} Kg6 {[%emt 0:00:00]} 84. Kg4 {[%emt 0:00:00]} Rb7 {[%emt 0:00:00]} 85. Rf6+ {[%emt 0:00:00]} Kh7 {[%emt 0:00:00]} 86. Kf5 {[%emt 0:00:00]} Kg8 {[%emt 0:00:00]} 87. Ra6 {[%emt 0:00:00]} Rf7+ {[%emt 0:00:00]} 88. Kg6 {[%emt 0:00:00]} Rg7+ {[%emt 0:00:00]} 89. Kf5 {[%emt 0:00:00]} Rf7+ {[%emt 0:00:00]} 90. Bf6 {[%emt 0:00:00]} Rf8 {[%emt 0:00:00]} 91. Ra1 {[%emt 0:00:00]} Rb8 {[%emt 0:00:00]} 92. Kg6 {[%emt 0:00:00]} Rf8 {[%emt 0:00:00]} 93. Rh1 {[%emt 0:00:00]} 1-0

[Event "32nd NATO Championship 2022"]
[Site "Tartu"]
[Date "2022.06.30"]
[Round "6.1"]
[White "Papasimakopoulos, Alexandros"]
[Black "Stein, Robert"]
[Result "1/2-1/2"]
[ECO "D31"]
[WhiteElo "2259"]
[BlackElo "2365"]
[Annotator "TA"]
[PlyCount "62"]
[EventDate "2022.06.27"]
[EventType "swiss"]
[EventCountry "EST"]
[SourceTitle "playchess.com"]
[Source "ChessBase"]
[SourceQuality "1"]
[TimeControl "5400+30"]

{[%evp 9,62,22,24,22,22,23,23,22,27,31,34,20,18,16,20,10,22,0,7,0,16,0,0,0,0,0,0,0,0,0,63,8,32,0,0,-51,-54,-51,-58,-89,-89,-89,-89,-89,-89,-86,-90,-66,-75,-75,-71,-56,-34,-26,-47]} 1. d4 {[%emt 0:00:04]} d5 {[%emt 0:00:06]} 2. c4 {[%emt 0:00:04]} e6 {[%emt 0:00:05]} 3. Nc3 {[%emt 0:00:04]} a6 {[%emt 0:00:26]} 4. cxd5 {[%emt 0:00:06]} exd5 {[%emt 0:00:05]} 5. Qb3 {[%emt 0:00:06]} c6 {[%emt 0:00:25]} 6. Nf3 {[%emt 0:00:16] D31: Queen's Gambit Declined: Semi-Slav without ...Nf6 (+ Marshall Gambit and Noteboom) and Exchange Variation lines without ...Nf6.} Nf6 {[%emt 0:00:24] Prevents e4.} 7. Bg5 {[%emt 0:00:14][%cal Oe2e4]} Be7 {[%emt 0:02:09]} 8. e3 {[%emt 0:00:43] White has an edge.} h6 {[%emt 0:03:07]} 9. Bf4 {[%emt 0:01:45]} O-O {[%emt 0:02:47] [#]} 10. Bxb8 $146 {[%emt 0:02:10]} ({Predecessor:} 10. Bd3 c5 11. dxc5 Nbd7 12. Qc2 Nxc5 13. O-O Be6 14. h3 Rc8 15. Nd4 b5 16. Qd1 b4 17. Nce2 Bd7 18. Rc1 Re8 19. Bb1 a5 20. Bg3 Bf8 {½-½ (31) Morrow,W (2514)-Williamson,H (2514) ICCF email 2018}) 10... Rxb8 {[%emt 0:00:31]} 11. Bxa6 $1 {[%emt 0:00:12]} Bf5 {[%emt 0:05:42]} 12. Be2 {[%emt 0:00:10]} Bd6 {[%emt 0:00:05]} 13. h3 {[%emt 0:02:02]} Qe7 {[%emt 0:00:46]} 14. Qd1 {[%emt 0:02:48]} Rfe8 {[%emt 0:00:51]} 15. Bd3 {[%emt 0:03:51]} Ne4 {[%emt 0:01:32]} 16. Bxe4 {[%emt 0:01:20]} dxe4 {[%emt 0:00:14]} 17. Nd2 {[%emt 0:00:08]} Qg5 {[%emt 0:16:13]} 18. g4 {[%emt 0:00:09]} Bg6 {[%emt 0:00:19]} 19. h4 {[%emt 0:00:17]} Qf6 {[%emt 0:01:06]} (19... Qe7 $11) 20. Qe2 {[%emt 0:03:35]} (20. g5 $14 hxg5 21. Qg4) 20... b5 {[%emt 0:11:39]} 21. Nb3 {[%emt 0:03:30]} (21. g5 $5 {[%cal Rg5f6]} Qe6 22. gxh6 $14) 21... Ra8 {[%emt 0:01:39]} 22. g5 {[%emt 0:07:39]} ({White should play} 22. a3 $11) 22... hxg5 $15 {[%emt 0:06:27]} 23. Qg4 {[%emt 0:00:06]} gxh4 {[%emt 0:00:24]} 24. Qxh4 {[%emt 0:00:05]} Qxh4 {[%emt 0:00:29]} 25. Rxh4 {[%emt 0:00:06]} f5 {[%emt 0:01:58]} 26. Kd2 {[%emt 0:07:32]} Bf7 {[%emt 0:07:18] [#] ...Bxb3 is the strong threat.} 27. Rah1 {[%emt 0:00:19][%csl Gh1][%cal Rh4h8]} g6 {[%emt 0:04:50]} 28. Rh8+ {[%emt 0:01:18]} Kg7 {[%emt 0:00:06]} 29. Rxe8 {[%emt 0:01:26]} Bxe8 {[%emt 0:02:52]} 30. a3 {[%emt 0:02:25]} Bf7 {[%emt 0:08:37]} 31. Nc5 {[%emt 0:02:02]} g5 {[%emt 0:22:48] Weighted Error Value: White=0.12 (very precise) /Black=0.09 (flawless)} 1/2-1/2

[Event "32nd NATO Championship 2022"]
[Site "Tartu"]
[Date "2022.06.30"]
[Round "6.2"]
[White "Pavlidis, Anastasios"]
[Black "Pietruszewski, Marcin"]
[Result "1/2-1/2"]
[ECO "E14"]
[WhiteElo "2296"]
[BlackElo "2195"]
[Annotator "NA RC"]
[PlyCount "72"]
[EventDate "2022.06.27"]
[EventType "swiss"]
[EventCountry "EST"]
[SourceTitle "playchess.com"]
[Source "ChessBase"]
[SourceQuality "1"]
[TimeControl "5400+30"]

1. d4 {[%emt 0:00:51]} Nf6 {[%emt 0:00:18]} 2. c4 {[%emt 0:00:14]} e6 {[%emt 0:00:06]} 3. Nf3 {[%emt 0:00:40]} Bb4+ {[%emt 0:00:04]} 4. Nbd2 {[%emt 0:00:31]} b6 {[%emt 0:00:12]} 5. a3 {[%emt 0:00:33]} Bxd2+ {[%emt 0:00:06]} 6. Qxd2 {[%emt 0:00:44]} ({Don't play} 6. Kxd2 O-O $11) 6... Bb7 {[%emt 0:00:05]} 7. e3 {[%emt 0:00:22]} Qe7 {[%emt 0:00:30]} 8. b4 {[%emt 0:07:02]} d6 {[%emt 0:00:57]} 9. Be2 {[%emt 0:06:36]} Nbd7 {[%emt 0:00:09]} 10. Bb2 {[%emt 0:00:48]} O-O {[%emt 0:00:44]} 11. O-O {[%emt 0:00:17]} a5 {[%emt 0:00:03]} 12. Rac1 {[%emt 0:06:57]} Be4 {[%emt 0:09:10]} (12... Ne4 $11 {is superior.} 13. Qc2 Rfc8) 13. Ne1 {[%emt 0:06:05]} Rfc8 {[%emt 0:16:25]} 14. f3 {[%emt 0:02:08]} Bg6 {[%emt 0:00:54]} 15. Nd3 {[%emt 0:06:20]} c6 {[%emt 0:17:46]} (15... axb4 $14 16. axb4 Bxd3 17. Bxd3 e5) 16. e4 {[%emt 0:13:02]} axb4 {[%emt 0:20:49]} 17. axb4 {[%emt 0:03:58]} e5 {[%emt 0:00:19]} 18. dxe5 {[%emt 0:16:55]} dxe5 {[%emt 0:00:16]} 19. Qc3 {[%emt 0:00:59]} Ne8 {[%emt 0:19:03]} 20. Nxe5 $16 {[%emt 0:03:34]} Nxe5 {[%emt 0:00:14]} 21. Qxe5 {[%emt 0:00:09]} Qxb4 {[%emt 0:00:03]} 22. Bc3 {[%emt 0:01:59]} Qc5+ {[%emt 0:04:33]} 23. Qxc5 {[%emt 0:01:34]} bxc5 {[%emt 0:00:00]} 24. Ra1 {[%emt 0:00:42]} Nc7 {[%emt 0:00:20]} 25. Rxa8 {[%emt 0:02:05]} Rxa8 {[%emt 0:00:01]} 26. Rd1 {[%emt 0:02:37]} Ne6 {[%emt 0:00:01]} 27. Rd6 {[%emt 0:00:53]} Ra2 {[%emt 0:02:17]} 28. Bf1 {[%emt 0:03:43]} Ra6 {[%emt 0:01:43]} 29. Be5 {[%emt 0:00:58]} Kf8 {[%emt 0:00:12]} 30. Rd7 {[%emt 0:00:13]} Ke8 {[%emt 0:03:23]} 31. Rb7 {[%emt 0:00:07]} Ra2 {[%emt 0:02:37]} 32. Rb8+ {[%emt 0:05:53]} Ke7 {[%emt 0:00:46]} 33. Rb7+ {[%emt 0:01:40]} Kd8 {[%emt 0:00:41]} 34. Rb8+ {[%emt 0:00:54]} Kd7 {[%emt 0:00:45]} 35. Rb7+ {[%emt 0:05:57]} Kd8 {[%emt 0:02:28]} 36. h4 {[%emt 0:00:30]} h5 {[%emt 0:00:30]} 1/2-1/2

[Event "32nd NATO Championship 2022"]
[Site "Tartu"]
[Date "2022.06.30"]
[Round "6.6"]
[White "Mouroutis, Konstantinos"]
[Black "Wang, Eigen"]
[Result "0-1"]
[ECO "D02"]
[WhiteElo "2125"]
[BlackElo "2269"]
[Annotator "NA RC"]
[PlyCount "78"]
[EventDate "2022.06.27"]
[EventType "swiss"]
[EventCountry "EST"]
[SourceTitle "playchess.com"]
[Source "ChessBase"]
[SourceQuality "1"]
[TimeControl "5400+30"]

{[%evp 8,46,0,5,6,-5,-6,-6,1,0,-8,32767,-11,-21,4,-12,32767,-13,-5,-50,-45,-34,-17,-21,0,-16,0,-22,-14,-31,-33,-30,0,-39,-12,-25,-21,-36,-21,-33,0]} 1. d4 {[%emt 1:31:00]} Nf6 {[%emt 1:31:00]} 2. Bf4 {[%emt 0:00:30]} d5 {[%emt 0:00:30]} 3. e3 {[%emt 0:00:30]} e6 {[%emt 0:00:30]} 4. Bd3 {[%emt 0:00:30]} c5 {[%emt 0:00:30]} 5. c3 {[%emt 0:00:30]} Bd6 {[%emt 0:00:30]} 6. Bg3 {[%emt 0:00:30]} O-O {[%emt 0:00:30]} 7. Nf3 {[%emt 0:00:30]} Qc7 {[%emt 0:00:30] now scores much better than the old 7...Nc6.} 8. Nbd2 {[%emt 0:00:30]} Nbd7 {[%emt 0:00:30]} 9. O-O {[%emt 0:00:30]} Bxg3 {[%emt 0:00:30]} 10. hxg3 e5 {[%emt 0:00:30]} 11. dxe5 {[%emt 0:01:00]} Nxe5 {[%emt 0:00:30]} 12. Nxe5 {[%emt 0:00:30]} Qxe5 {[%emt 0:00:30]} 13. Nf3 {[%emt 0:00:30]} (13. Qf3 $11) 13... Qh5 {[%emt 0:00:30]} 14. Re1 {[%emt 0:00:30] [#]} Rd8 $146 {[%emt 0:00:30]} ({Predecessor:} 14... Bg4 15. Be2 Rad8 16. Nh4 Rfe8 17. Bxg4 Nxg4 18. Qf3 g5 19. Nf5 Qh2+ 20. Kf1 Ne5 {0-1 (30) Putri,R (1897)-Shimelkov,V (2159) Chess.com INT 2022}) 15. Nh2 {[%emt 0:00:30]} Qh6 {[%emt 0:00:30]} 16. Qf3 {[%emt 0:00:30]} Be6 {[%emt 0:00:30]} 17. Bf5 {[%emt 0:00:30]} Qg5 {[%emt 0:00:30]} 18. Bxe6 {[%emt 0:00:30]} fxe6 {[%emt 0:00:30]} 19. Qf4 {[%emt 0:00:30]} Qh5 {[%emt 0:00:30]} 20. Nf3 {[%emt 0:00:30]} Rf8 {[%emt 0:00:30]} 21. Qg5 {[%emt 0:00:30]} Qe8 {[%emt 0:00:30]} 22. Nd2 {[%emt 0:00:30]} Qb5 {[%emt 0:00:30]} 23. e4 {[%emt 0:00:30]} dxe4 $11 {[%emt 0:00:30]} 24. c4 {[%emt 0:00:30]} Qc6 {[%emt 0:00:30]} 25. Re2 {[%emt 0:00:30]} Rad8 {[%emt 0:00:30]} 26. Rae1 {[%emt 0:00:30]} Rd4 {[%emt 0:00:30]} 27. b3 {[%emt 0:00:30]} h6 {[%emt 0:00:30]} 28. Qg6 {[%emt 0:00:30]} e3 {[%emt 0:00:30]} 29. fxe3 {[%emt 0:00:30]} Rg4 {[%emt 0:00:30]} 30. Qd3 {[%emt 0:00:30]} Rxg3 {[%emt 0:00:30]} 31. Nf1 {[%emt 0:00:30]} Rg5 {[%emt 0:00:30]} 32. e4 {[%emt 0:00:30]} Nh5 {[%emt 0:00:30]} 33. Rd2 {[%emt 0:00:30]} Nf4 {[%emt 0:00:30]} 34. Qe3 {[%emt 0:00:30]} e5 {[%emt 0:00:30]} 35. Kh1 {[%emt 0:00:30]} Qg6 {[%emt 0:00:30]} 36. g3 {[%emt 0:00:30]} Nh5 {[%emt 0:00:30]} 37. Kh2 {[%emt 0:00:30]} Rxf1 {[%emt 0:00:30]} 38. Rxf1 Nxg3 {[%emt 0:00:30]} 39. Rf8+ {[%emt 0:01:00]} Kxf8 {[%emt 0:00:30]} 0-1

[Event "32nd NATO Championship 2022"]
[Site "Tartu"]
[Date "2022.06.30"]
[Round "6.7"]
[White "Nilsson, Erik"]
[Black "Sycz, Dariusz"]
[Result "1/2-1/2"]
[ECO "D36"]
[WhiteElo "2002"]
[BlackElo "2189"]
[Annotator "NA RC"]
[PlyCount "131"]
[EventDate "2022.06.27"]
[EventType "swiss"]
[EventCountry "EST"]
[SourceTitle "playchess.com"]
[Source "ChessBase"]
[SourceQuality "1"]
[TimeControl "5400+30"]

1. d4 {[%emt 0:00:02]} Nf6 {[%emt 0:00:23]} 2. c4 {[%emt 0:00:07]} e6 {[%emt 0:00:19]} 3. Nc3 {[%emt 0:00:09]} d5 {[%emt 0:01:39]} 4. cxd5 {[%emt 0:00:53]} exd5 {[%emt 0:00:10]} 5. Bg5 {[%emt 0:00:09]} Nbd7 {[%emt 0:00:47]} 6. e3 {[%emt 0:00:20]} c6 {[%emt 0:00:42]} 7. Bd3 {[%emt 0:00:27]} Be7 {[%emt 0:00:59]} 8. Qc2 {[%emt 0:00:30]} O-O {[%emt 0:00:22]} 9. Nge2 {[%emt 0:00:43]} Re8 {[%emt 0:01:09]} 10. O-O {[%emt 0:00:55]} Nf8 {[%emt 0:01:19]} 11. f3 {[%emt 0:01:33]} Ng6 {[%emt 0:14:40] Recently 11...g6 got a lot of attention.} 12. Rad1 {[%emt 0:01:47]} Nh5 {[%emt 0:11:14]} (12... h6 $11 13. Bxf6 Bxf6) 13. Bxe7 {[%emt 0:03:36]} Qxe7 {[%emt 0:00:21]} 14. e4 {[%emt 0:00:52]} dxe4 {[%emt 0:09:17]} 15. fxe4 {[%emt 0:01:00]} Bg4 {[%emt 0:01:41]} 16. Bc4 {[%emt 0:13:18]} Rf8 {[%emt 0:01:24] [#]} 17. Qb3 $146 {[%emt 0:04:03]} ({Predecessor:} 17. a3 Kh8 18. Rf2 Bxe2 19. Bxe2 Nhf4 20. Qd2 Qg5 21. Kh1 f6 22. Qe3 Rae8 23. Rdf1 {½-½ (40) Mishugin,A (2097)-Nazarenko,P Kiev 2005}) 17... b5 {[%emt 0:02:26]} 18. Bd3 {[%emt 0:01:06]} Qg5 {[%emt 0:04:34]} 19. Qc2 {[%emt 0:06:31]} b4 {[%emt 0:05:59]} 20. Na4 {[%emt 0:01:52]} Qe3+ {[%emt 0:07:55]} 21. Rf2 {[%emt 0:00:51]} Nhf4 {[%emt 0:00:54]} 22. Qd2 {[%emt 0:04:08]} Qxd2 {[%emt 0:01:22]} 23. Rxd2 {[%emt 0:00:08]} Nxd3 {[%emt 0:00:04]} 24. Rxd3 {[%emt 0:00:22]} Bxe2 {[%emt 0:00:03]} 25. Rxe2 {[%emt 0:00:17]} Nf4 {[%emt 0:00:03]} 26. Red2 {[%emt 0:00:12]} Nxd3 {[%emt 0:00:06]} 27. Rxd3 {[%emt 0:00:05]} Rfe8 $17 {[%emt 0:00:37]} 28. Nc5 {[%emt 0:00:30]} a5 {[%emt 0:02:01]} 29. Kf2 {[%emt 0:00:14]} f6 {[%emt 0:02:36]} 30. Kf3 {[%emt 0:01:33]} Ra7 {[%emt 0:00:29]} 31. Rd2 {[%emt 0:00:29]} Rd8 {[%emt 0:01:29]} 32. Ke3 {[%emt 0:00:29]} Re7 {[%emt 0:00:27]} 33. Kd3 {[%emt 0:00:37]} g6 {[%emt 0:01:07]} 34. Re2 {[%emt 0:02:29]} Kg7 {[%emt 0:02:59]} 35. Kc4 {[%emt 0:00:22]} f5 {[%emt 0:00:49]} 36. e5 {[%emt 0:00:17]} g5 {[%emt 0:00:41]} 37. Nb3 {[%emt 0:01:26]} Rd5 {[%emt 0:00:35]} 38. Nc5 {[%emt 0:00:49]} Kg6 {[%emt 0:00:45]} 39. Rf2 {[%emt 0:01:58]} h5 {[%emt 0:01:40]} 40. Rf3 {[%emt 0:02:14]} h4 {[%emt 0:01:19]} 41. h3 {[%emt 0:02:31]} Rd8 {[%emt 0:02:24]} 42. Nb3 {[%emt 0:00:46]} Red7 {[%emt 0:01:52]} 43. Rd3 {[%emt 0:00:27]} Rd5 {[%emt 0:01:03]} 44. Nc5 {[%emt 0:01:04]} f4 {[%emt 0:01:02]} 45. Nb7 {[%emt 0:02:22]} R8d7 {[%emt 0:05:16]} 46. Nd6 {[%emt 0:00:41]} R7xd6 {[%emt 0:03:26]} 47. exd6 {[%emt 0:00:11]} Rxd6 {[%emt 0:00:01]} 48. Kc5 {[%emt 0:00:32]} Re6 {[%emt 0:00:04]} 49. Rd2 {[%emt 0:00:35]} Kf5 {[%emt 0:01:10]} 50. Kb6 {[%emt 0:00:43]} g4 {[%emt 0:01:39]} 51. hxg4+ {[%emt 0:01:03]} Kxg4 {[%emt 0:00:03]} 52. Kxa5 {[%emt 0:00:11]} Kg3 {[%emt 0:01:02]} 53. Kxb4 {[%emt 0:00:11]} h3 {[%emt 0:00:20]} 54. gxh3 {[%emt 0:00:24]} f3 {[%emt 0:00:26]} 55. a4 {[%emt 0:08:21]} Re2 {[%emt 0:00:17]} 56. Rd3 {[%emt 0:01:13]} Rxb2+ {[%emt 0:00:31]} 57. Kc5 {[%emt 0:00:26]} Rc2+ {[%emt 0:00:27]} 58. Kb6 {[%emt 0:00:29]} Kg2 {[%emt 0:01:30]} 59. a5 {[%emt 0:01:13]} f2 {[%emt 0:01:38]} 60. Rd1 {[%emt 0:00:09]} Rc4 {[%emt 0:01:46]} 61. a6 {[%emt 0:06:45]} Rxd4 {[%emt 0:00:39]} 62. Ra1 {[%emt 0:04:00]} Ra4 {[%emt 0:01:43]} 63. Rxa4 {[%emt 0:00:06]} f1=Q {[%emt 0:00:07]} 64. Ra5 {[%emt 0:00:52]} Qc4 {[%emt 0:04:22]} 65. a7 {[%emt 0:02:47]} Qb4+ {[%emt 0:00:09]} 66. Ka6 {[%emt 0:26:05]} 1/2-1/2

[Event "32nd NATO Championship 2022"]
[Site "Tartu"]
[Date "2022.06.30"]
[Round "6.8"]
[White "Pazeriene, Diana"]
[Black "Bohn, Ulrich"]
[Result "0-1"]
[ECO "A59"]
[WhiteElo "1930"]
[BlackElo "2168"]
[Annotator "NA RC"]
[PlyCount "54"]
[EventDate "2022.06.27"]
[EventType "swiss"]
[EventCountry "EST"]
[SourceTitle "playchess.com"]
[Source "ChessBase"]
[SourceQuality "1"]
[TimeControl "5400+30"]

1. d4 {[%emt 0:00:03]} Nf6 {[%emt 0:00:08]} 2. c4 {[%emt 0:00:14]} c5 {[%emt 0:00:06]} 3. d5 {[%emt 0:00:43]} b5 {[%emt 0:00:08]} 4. cxb5 {[%emt 0:00:49]} a6 {[%emt 0:00:06]} 5. bxa6 {[%emt 0:00:38]} g6 {[%emt 0:00:09]} 6. Nc3 {[%emt 0:01:02]} Bxa6 {[%emt 0:00:59]} 7. e4 {[%emt 0:05:07]} Bxf1 {[%emt 0:00:07]} 8. Kxf1 {[%emt 0:00:00]} d6 {[%emt 0:00:10]} 9. Nf3 {[%emt 0:01:57]} Qc8 {[%emt 0:08:50]} 10. h3 {[%emt 0:05:44]} Bg7 {[%emt 0:02:56]} 11. g3 {[%emt 0:00:41]} O-O {[%emt 0:00:05]} 12. Kg2 {[%emt 0:00:20]} Na6 {[%emt 0:00:30]} 13. Rb1 {[%emt 0:05:19]} Nd7 {[%emt 0:04:31]} 14. a4 {[%emt 0:21:32]} (14. Bg5 $16) 14... Qb7 $11 {[%emt 0:18:12]} 15. Bd2 {[%emt 0:04:56]} Nb6 {[%emt 0:21:13]} 16. Re1 {[%emt 0:16:21]} Nb4 {[%emt 0:01:46]} 17. b3 {[%emt 0:05:51]} f5 {[%emt 0:00:21]} 18. Nb5 {[%emt 0:09:20]} Nd3 {[%emt 0:08:58]} 19. Re2 {[%emt 0:01:45]} fxe4 {[%emt 0:02:09]} 20. Ng5 {[%emt 0:02:00]} Nxd5 {[%emt 0:06:46]} 21. Nxe4 {[%emt 0:00:48]} Nxf2 {[%emt 0:01:44]} 22. Rxf2 {[%emt 0:00:20]} Nf6 {[%emt 0:00:06]} 23. Kh2 {[%emt 0:10:28]} Nxe4 {[%emt 0:00:13]} 24. Rxf8+ {[%emt 0:00:24]} Rxf8 {[%emt 0:00:19]} 25. Be3 {[%emt 0:00:07]} Nxg3 {[%emt 0:05:04]} 26. Kxg3 {[%emt 0:00:33]} Be5+ {[%emt 0:00:05]} 27. Kh4 {[%emt 0:00:36]} Qe4+ {[%emt 0:00:17]} 0-1